[Event "3rd Matrix Cup 2024"]
[Site "New Delhi"]
[Date "2024.04.10"]
[Round "9.1"]
[White "Aronyak Ghosh"]
[Black "Shubhi Gupta"]
[Result "1-0"]
[ECO "A21"]
[WhiteElo "2517"]
[BlackElo "1953"]
[Annotator "TA"]
[PlyCount "75"]
[EventDate "2024.04.07"]
[EventType "swiss"]
[EventCountry "IND"]
[SourceTitle "playchess.com"]
[Source "ChessBase"]
[SourceQuality "1"]
[TimeControl "5400+30"]

{[%evp 16,75,35,33,43,23,50,6,30,31,29,15,20,21,47,30,23,40,56,74,65,74,138,152,133,144,167,138,137,53,61,58,63,63,137,128,124,135,136,122,130,134,137,138,254,128,310,293,287,223,383,383,375,371,955,494,29985,29986,29986,29986,29986,29987]} 1. c4 {[%emt 0:02:03]} e5 {[%emt 0:02:51]} 2. d3 {[%emt 0:01:51]} d6 {[%emt 0:01:45]} 3. Nc3 {[%emt 0:01:10]} f5 {[%emt 0:01:47]} 4. g3 {[%emt 0:06:04]} Nf6 {[%emt 0:05:37]} 5. Bg2 {[%emt 0:03:32]} g6 {[%emt 0:04:56]} 6. Nf3 {[%emt 0:07:07]} Bg7 {[%emt 0:03:02]} 7. O-O {[%emt 0:00:24]} O-O {[%emt 0:02:26]} 8. Rb1 {[%emt 0:01:12]} c6 {[%emt 0:10:36]} 9. b4 {[%emt 0:06:24]} Qc7 {[%emt 0:04:39]} 10. Bd2 {[%emt 0:11:30]} Nbd7 {[%emt 0:04:29]} 11. b5 {[%emt 0:09:12]} Nc5 {[%emt 0:04:07] The position is equal.} 12. Be3 {[%emt 0:05:26][%cal Of3e5]} Ne6 {[%emt 0:05:37]} 13. bxc6 {[%emt 0:01:03]} bxc6 {[%emt 0:00:31]} 14. Ng5 {[%emt 0:02:27]} f4 {[%emt 0:04:15]} 15. Nxe6 {[%emt 0:00:29]} Bxe6 {[%emt 0:00:05]} 16. Bd2 {[%emt 0:01:36]} (16. gxf4 exf4 (16... Ng4 17. Bd2 $15) 17. Bd2 (17. Bxf4 Ng4 $17) 17... Ng4 $15) 16... fxg3 {[%emt 0:06:13]} 17. hxg3 {[%emt 0:04:17]} d5 {[%emt 0:02:55]} 18. Qa4 {[%emt 0:02:33]} d4 {[%emt 0:03:27]} (18... dxc4 $142 19. dxc4 (19. Qxc6 Qxc6 20. Bxc6 Rad8 $11) 19... Rac8) 19. Ne4 $16 {[%emt 0:00:38]} (19. Qxc6 Qxc6 20. Bxc6 dxc3 21. Bxc3 Rac8 $17) 19... Nxe4 {[%emt 0:02:17]} 20. Bxe4 {[%emt 0:00:09]} (20. dxe4 c5 $15) 20... Rac8 {[%emt 0:00:23]} 21. Rb2 {[%emt 0:03:20]} Bf5 {[%emt 0:07:41] [#]} 22. Bg2 {[%emt 0:00:36] White is more active.} (22. Qa6 $1 $16 {aiming for Rb7.} Rb8 (22... Bxe4 23. Rb7 $18) 23. Rxb8 (23. Qxc6 $2 Qxc6 24. Bxc6 Rxb2 $19) 23... Rxb8 24. Bxc6 (24. Qxc6 Qxc6 25. Bxc6 Rb2 $16)) 22... e4 $1 $14 {[%emt 0:02:28]} 23. dxe4 {[%emt 0:04:45]} d3 $1 {[%emt 0:00:05] ...Bg4 is the strong threat.} 24. Bf4 $36 {[%emt 0:00:18][%mdl 2048] White is pushing.} Qf7 {[%emt 0:03:33]} (24... Qe7 $1 $14 25. Rd2 dxe2 26. Rxe2 (26. exf5 e1=Q $11) 26... Bg4) 25. Rd2 {[%emt 0:02:41]} dxe2 {[%emt 0:00:11]} 26. Rxe2 {[%emt 0:00:06]} ({Don't do} 26. exf5 $6 exf1=B (26... exf1=R+ 27. Kxf1 Qxf5 28. Bxc6 $14) 27. Kxf1 Bc3 (27... Qxf5 28. Bxc6 Kh8 29. Kg2 $14) 28. fxg6 Qxg6 $14) 26... Be6 {[%emt 0:00:15]} 27. Rc1 {[%emt 0:01:27]} Rfd8 {[%emt 0:02:52]} 28. e5 {[%emt 0:01:08]} Rd4 {[%emt 0:01:53]} 29. Re4 {[%emt 0:02:21]} c5 {[%emt 0:01:35]} (29... Rd7 $16 30. Qa6 Rdd8) 30. Rd1 {[%emt 0:03:06]} (30. Rxd4 $18 cxd4 31. c5) 30... Rcd8 {[%emt 0:01:50] This move loses the game for Black.} (30... Rxd1+ $16 {keeps fighting.} 31. Qxd1 h6) 31. Rexd4 $18 {[%emt 0:00:08]} Rxd4 {[%emt 0:01:14]} 32. Rb1 {[%emt 0:02:38]} Rxc4 $2 {[%emt 0:01:53]} (32... Bf8 33. Rb8 Rxf4 34. gxf4 Qxf4) 33. Rb8+ {[%emt 0:01:04]} Bf8 {[%emt 0:00:05]} 34. Qc6 {[%emt 0:00:38] [#] Threatening mate with Bh6.} Bd7 $2 {[%emt 0:03:14]} (34... Rxf4 35. gxf4 Bxa2) 35. e6 {[%emt 0:02:54][%cal Be5e6,Be6e7][%mdl 32]} Qxf4 {[%emt 0:03:44]} (35... Bxc6 $18 36. exf7+ Kxf7 37. Bxc6 Rd4) 36. gxf4 {[%emt 0:00:49] White mates.} Bxc6 {[%emt 0:00:14]} 37. e7 {[%emt 0:00:07][%csl Gb8][%cal Re7f8]} Rxf4 {[%emt 0:00:06]} 38. Bxc6 {[%emt 0:00:03] Weighted Error Value: White=0.33/Black=0.50.  Loses game:     	---       	Black=1      Mistake:       	White=2     	Black=6      Inaccurate:     	White=2     	Black=2      OK:         	White=8     	Black=6      Best:        	White=3     	Black=3      Strong:       	---       	Black=2} 1-0

[Event "3rd Matrix Cup 2024"]
[Site "New Delhi"]
[Date "2024.04.10"]
[Round "9.2"]
[White "Mrityunjay Kumar"]
[Black "Neelash Saha"]
[Result "0-1"]
[ECO "D59"]
[WhiteElo "1900"]
[BlackElo "2464"]
[Annotator "TA"]
[PlyCount "70"]
[EventDate "2024.04.07"]
[EventType "swiss"]
[EventCountry "IND"]
[SourceTitle "playchess.com"]
[Source "ChessBase"]
[SourceQuality "1"]
[TimeControl "5400+30"]

{[%evp 22,70,-22,-17,0,-4,0,0,12,2,23,20,19,-18,0,-60,-25,-54,-59,-71,-70,-75,0,0,0,0,0,-22,-22,-107,-24,-132,-118,-139,-125,-172,-156,-298,-298,-288,-279,-561,-561,-554,-554,-554,-554,-29990,-29991,-29991,-29992]} 1. d4 {[%emt 0:00:10]} Nf6 {[%emt 0:00:54]} 2. c4 {[%emt 0:00:07]} e6 {[%emt 0:01:15]} 3. Nc3 {[%emt 0:00:07]} d5 {[%emt 0:00:24]} 4. Nf3 {[%emt 0:00:17]} Be7 {[%emt 0:01:52]} 5. Bg5 {[%emt 0:00:10]} O-O {[%emt 0:00:38]} 6. e3 {[%emt 0:00:11]} h6 {[%emt 0:00:47]} 7. Bh4 {[%emt 0:00:10]} b6 {[%emt 0:01:51]} 8. cxd5 {[%emt 0:00:15]} Nxd5 {[%emt 0:00:28]} 9. Bxe7 {[%emt 0:00:09]} Qxe7 {[%emt 0:00:07]} 10. Be2 {[%emt 0:02:42]} Bb7 {[%emt 0:00:48]} 11. O-O {[%emt 0:00:10]} Nxc3 {[%emt 0:02:08]} 12. bxc3 {[%emt 0:00:09]} Nd7 {[%emt 0:00:04]} 13. a4 {[%emt 0:00:23]} a5 {[%emt 0:06:30]} 14. Nd2 {[%emt 0:03:25]} e5 {[%emt 0:00:44] The position is equal.} 15. Bf3 {[%emt 0:09:22]} e4 {[%emt 0:00:06]} 16. Be2 {[%emt 0:00:04]} f5 {[%emt 0:00:03]} 17. c4 {[%emt 0:00:44][%cal Oc4c5]} c5 {[%emt 0:02:29]} 18. Nb1 {[%emt 0:05:52]} ({White should try} 18. d5 $11) 18... f4 {[%emt 0:02:06] Hoping for ...f3.} 19. exf4 {[%emt 0:00:18]} Qf6 $1 {[%emt 0:01:06]} 20. dxc5 {[%emt 0:00:40]} (20. Bg4 $2 Rad8 (20... Qxd4 $2 21. Qxd4 cxd4 22. Bxd7 $18) 21. Qb3 cxd4 22. c5+ Kh7 23. Bxd7 Rxd7 24. cxb6 d3 $19 (24... Qxf4 $2 25. g3 $19)) 20... Qxa1 {[%emt 0:10:41]} (20... Nxc5 21. Ra2) 21. Qxd7 {[%emt 0:03:31]} Rf7 {[%emt 0:00:04]} (21... Qb2 $1 $17 {[%cal Rb2e2]} 22. c6 (22. Qxb7 Qxe2 23. cxb6 Rad8 $17) 22... Qxe2 (22... Bxc6 23. Qxc6 Qxe2 24. Nc3 $11) 23. cxb7 Rab8 24. Qd5+ Rf7) 22. Qe6 $11 {[%emt 0:02:10] And now Bh5 would win.} Qf6 $1 {[%emt 0:00:04]} (22... bxc5 $6 23. Bh5 Qf6 24. Qxf7+ (24. Bxf7+ Qxf7 25. Qb6 e3 $16) 24... Qxf7 25. Bxf7+ Kxf7 26. Rd1 $14) 23. Qxb6 {[%emt 0:00:26]} Rc8 {[%emt 0:13:24]} 24. Bh5 {[%emt 0:05:35]} Re7 {[%emt 0:00:04]} 25. Qxa5 {[%emt 0:09:08] [#]} (25. Qxf6 $11 gxf6 26. Be2) 25... Qxf4 {[%emt 0:01:03]} ({Better is} 25... e3 $1 $17 {[%cal Re3f2]} 26. Qe1 Rxc5 (26... Qxf4 $2 27. Be2 $19)) 26. Qd2 {[%emt 0:00:14]} (26. Be2 $1 $11) 26... Qf5 {[%emt 0:10:36]} 27. Be2 {[%emt 0:02:04] [#]} e3 $1 {[%emt 0:03:46] Black is more active.} ({Much weaker is} 27... Rxc5 $6 28. Qd8+ Qf8 29. Qd4 $11) (27... Qxc5 28. Qe3 $15) 28. fxe3 {[%emt 0:00:25]} (28. Qd4 $17 {is a better defense.}) 28... Qxc5 $40 {[%emt 0:00:06][%mdl 128] Black has strong attack.} 29. Kh1 {[%emt 0:15:48]} (29. Bg4 $17 Rxe3 (29... Qxe3+ 30. Qxe3 Rxe3 31. Bxc8 $16) 30. Qf2) 29... Rxe3 {[%emt 0:00:29]} 30. Nc3 {[%emt 0:01:16]} Rce8 {[%emt 0:06:12]} 31. Bd3 $2 {[%emt 0:02:25]} (31. Bf3 {was the only defense.} Bxf3 (31... Qxc4 32. Bd5+ Bxd5 33. Qxd5+ Qxd5 34. Nxd5 $19) 32. gxf3) 31... Rd8 {[%emt 0:02:46]} ({Don't blunder} 31... Qd4 $2 32. Bh7+ Kxh7 33. Qxd4 $18) 32. Nd5 {[%emt 0:02:49]} Bxd5 {[%emt 0:02:06]} 33. cxd5 {[%emt 0:00:44]} Rxd5 {[%emt 0:00:12]} 34. Rf5 {[%emt 0:03:14] Rxd5 would now be deadly.} Rexd3 {[%emt 0:00:34]} 35. Qxd3 {[%emt 0:00:09]} Rxd3 {[%emt 0:00:10] Weighted Error Value: White=0.64/Black=0.12 (very precise) .  Mistake:       	White=6     	Black=2      Inaccurate:     	White=3     	Black=1      OK:         	White=7     	Black=10     Best:        	White=1     	---        Strong:       	---       	Black=3} 0-1

[Event "3rd Matrix Cup 2024"]
[Site "New Delhi"]
[Date "2024.04.10"]
[Round "9.3"]
[White "Prithvi Sharma"]
[Black "Shreyash Singh"]
[Result "0-1"]
[ECO "B13"]
[WhiteElo "1858"]
[BlackElo "1853"]
[Annotator "NA RC COMBH"]
[PlyCount "100"]
[EventDate "2024.04.07"]
[EventType "swiss"]
[EventCountry "IND"]
[SourceTitle "playchess.com"]
[Source "ChessBase"]
[SourceQuality "1"]
[TimeControl "5400+30"]

1. e4 {[%emt 0:01:01]} c6 {[%emt 0:00:16]} 2. d4 {[%emt 0:02:13]} d5 {[%emt 0:00:04]} 3. exd5 {[%emt 0:00:09]} cxd5 {[%emt 0:00:05]} 4. Bd3 {[%emt 0:00:05]} Nc6 {[%emt 0:00:04]} 5. c3 {[%emt 0:00:04]} Qc7 {[%emt 0:00:02]} 6. h3 {[%emt 0:00:05]} Nf6 {[%emt 0:00:12]} 7. Nf3 {[%emt 0:00:34]} g6 {[%emt 0:00:16]} 8. O-O {[%emt 0:00:06]} Bf5 {[%emt 0:00:10]} 9. Re1 {[%emt 0:00:18]} Bxd3 {[%emt 0:00:19]} 10. Qxd3 {[%emt 0:00:02]} Bg7 {[%emt 0:00:08]} 11. Be3 {[%emt 0:00:24]} O-O {[%emt 0:00:15]} 12. Nbd2 {[%emt 0:00:02]} Rac8 {[%emt 0:03:53]} 13. g3 {[%emt 0:00:44]} Nh5 {[%emt 0:11:12]} 14. Kg2 {[%emt 0:00:02]} Rcd8 {[%emt 0:09:25]} 15. Nb3 {[%emt 0:04:50]} b6 {[%emt 0:07:01]} 16. Qd2 $11 {[%emt 0:03:33]} Rfe8 {[%emt 0:04:15]} 17. Rad1 {[%emt 0:13:19]} Qb7 {[%emt 0:06:25]} 18. Re2 {[%emt 0:23:58]} Nf6 {[%emt 0:02:20]} 19. Rde1 {[%emt 0:01:30]} Ne4 {[%emt 0:03:22]} 20. Qc2 {[%emt 0:02:00]} e6 {[%emt 0:01:08]} 21. Nfd2 {[%emt 0:01:00]} Nxd2 {[%emt 0:02:08]} 22. Qxd2 {[%emt 0:03:12]} Qa6 {[%emt 0:14:30]} 23. Nc1 {[%emt 0:01:47]} Na5 {[%emt 0:00:33]} 24. b3 {[%emt 0:02:55]} Rc8 {[%emt 0:00:39]} 25. Nd3 {[%emt 0:01:08]} Qb7 {[%emt 0:01:08]} 26. Kh2 {[%emt 0:02:29]} Nc6 {[%emt 0:00:45]} 27. Bh6 {[%emt 0:03:54]} Bh8 {[%emt 0:11:19]} 28. h4 {[%emt 0:01:14]} Ne7 {[%emt 0:01:31]} 29. h5 {[%emt 0:01:57]} Nf5 {[%emt 0:00:11]} 30. hxg6 {[%emt 0:00:36]} hxg6 {[%emt 0:00:08]} 31. Bf4 {[%emt 0:01:02]} Qc6 {[%emt 0:01:08]} 32. Rc1 {[%emt 0:03:16]} Bg7 {[%emt 0:03:06]} 33. Ne5 {[%emt 0:05:12]} Qb5 {[%emt 0:02:06]} 34. Ree1 {[%emt 0:03:12]} g5 {[%emt 0:07:05]} 35. g4 {[%emt 0:09:35]} Nd6 {[%emt 0:01:55]} 36. Bg3 {[%emt 0:01:40]} f6 {[%emt 0:01:26]} 37. Nf3 {[%emt 0:00:52]} Ne4 {[%emt 0:00:04]} 38. Qb2 {[%emt 0:00:29]} f5 {[%emt 0:01:01]} 39. a4 {[%emt 0:01:50]} Qc6 {[%emt 0:01:42]} 40. Rxe4 {[%emt 0:02:28]} dxe4 {[%emt 0:00:37]} 41. Ne5 {[%emt 0:00:01]} Qb7 {[%emt 0:00:20]} 42. Nc4 {[%emt 0:02:21]} f4 {[%emt 0:00:33]} 43. Nd6 {[%emt 0:00:18]} fxg3+ {[%emt 0:00:05]} 44. fxg3 {[%emt 0:00:01]} Qd5 {[%emt 0:00:12]} 45. Nxe8 {[%emt 0:00:35]} Rxe8 {[%emt 0:00:05]} 46. Rd1 {[%emt 0:00:22]} Rf8 {[%emt 0:01:05]} 47. c4 {[%emt 0:00:21]} Qd6 {[%emt 0:00:13]} 48. Qd2 {[%emt 0:01:19]} Rf3 {[%emt 0:00:09]} 49. Rg1 {[%emt 0:00:02]} e3 {[%emt 0:00:10]} 50. Qe1 {[%emt 0:01:05]} Qxd4 {[%emt 0:00:24]} 0-1

[Event "3rd Matrix Cup 2024"]
[Site "New Delhi"]
[Date "2024.04.10"]
[Round "9.4"]
[White "Saparya Ghosh"]
[Black "Kumar, Gaurav"]
[Result "0-1"]
[ECO "E45"]
[WhiteElo "1759"]
[BlackElo "2083"]
[Annotator "TA"]
[PlyCount "104"]
[EventDate "2024.04.07"]
[EventType "swiss"]
[EventCountry "IND"]
[SourceTitle "playchess.com"]
[Source "ChessBase"]
[SourceQuality "1"]
[TimeControl "5400+30"]

{[%evp 14,104,20,0,5,-1,0,-15,-12,-41,-38,-55,-37,-42,-37,-42,-52,-50,-23,-70,-14,-106,-75,-66,-54,-87,-70,-68,-30,-35,0,6,18,0,0,0,0,-126,-108,-117,-124,-118,0,-116,-77,-108,-128,-130,-130,-121,-74,-96,-120,-125,-95,-173,-156,-152,-151,-166,-164,-190,-117,-129,-52,-108,0,0,0,-212,-170,-1418,-1360,-2077,-1908,-12797,-12797,-12797,-12797,-6095,-11462,-29968,-29965,-29971,-29972,-29976,-29975,-29974,-29974,-29990,-29991,-29991,-29992]} 1. d4 {[%emt 0:04:46]} Nf6 {[%emt 0:00:08]} 2. c4 {[%emt 0:00:05]} e6 {[%emt 0:00:44]} 3. Nc3 {[%emt 0:00:06]} Bb4 {[%emt 0:00:11]} 4. e3 {[%emt 0:00:05]} b6 {[%emt 0:00:20]} 5. Nge2 {[%emt 0:03:45]} Ba6 {[%emt 0:00:37]} 6. a3 {[%emt 0:01:03]} Bxc3+ {[%emt 0:00:19]} 7. Nxc3 {[%emt 0:00:08]} d5 {[%emt 0:00:05]} 8. cxd5 {[%emt 0:15:12] Strongly threatening Bxa6.} Bxf1 {[%emt 0:00:29]} 9. Kxf1 {[%emt 0:00:42]} exd5 {[%emt 0:01:12]} 10. h4 {[%emt 0:07:53]} O-O {[%emt 0:01:00] The position is equal.} 11. h5 {[%emt 0:01:13]} h6 {[%emt 0:00:24]} 12. Qf3 {[%emt 0:04:13]} c6 {[%emt 0:04:15]} 13. e4 {[%emt 0:13:17]} dxe4 {[%emt 0:07:35]} 14. Nxe4 {[%emt 0:04:17]} Nxe4 {[%emt 0:00:11]} (14... Qxd4 $6 15. Nxf6+ Qxf6 16. Qxf6 gxf6 17. Bxh6 $14) 15. Qxe4 {[%emt 0:00:04]} Nd7 {[%emt 0:02:43]} 16. Be3 {[%emt 0:07:07]} (16. Qxc6 $11 Rc8 17. Qa4) 16... Nf6 {[%emt 0:00:13]} (16... Rc8 $1 $15) 17. Qf5 {[%emt 0:07:07]} (17. Qxc6 $11 Rc8 18. Qa4) 17... Nd5 {[%emt 0:01:07]} 18. Rh3 {[%emt 0:00:39]} Qc8 {[%emt 0:08:01]} (18... Re8 {is more complex.} 19. Rf3 Qc7 20. Rc1 Qb7) 19. Qf3 {[%emt 0:08:21]} Qa6+ {[%emt 0:16:17]} 20. Kg1 {[%emt 0:00:15]} Qb5 {[%emt 0:00:40]} 21. Rc1 {[%emt 0:03:16]} f5 {[%emt 0:04:28][%cal Of5f4]} (21... Qxb2 $2 22. Bxh6 Qxd4 (22... gxh6 $2 23. Rg3+ Kh8 24. Rxc6 $18) 23. Rg3 $18) 22. Bf4 {[%emt 0:04:51]} Qxb2 {[%emt 0:00:40]} 23. Rg3 {[%emt 0:08:29][%cal Og3g7]} Nf6 {[%emt 0:11:21]} 24. Rxc6 {[%emt 0:04:30]} Ng4 {[%emt 0:00:45][%cal Oa8e8] aiming for ...Rae8!} 25. Qd5+ {[%emt 0:00:40]} (25. Qb3+ $1 $11 {remains equal.} Qxb3 26. Rxb3) 25... Rf7 $1 $17 {[%emt 0:02:35]} 26. Rxg4 {[%emt 0:00:47]} fxg4 {[%emt 0:00:21]} 27. Rxh6 {[%emt 0:00:38]} Raf8 {[%emt 0:02:31]} (27... Re8 28. Rg6 $15) (27... Qb1+ $1 $17 28. Kh2 Qf5 29. Qxa8+ Rf8) 28. Rg6 {[%emt 0:00:21]} (28. Qe4 $1 $11 {was the only way to keep the balance.} Qa1+ (28... gxh6 29. Qg6+ Rg7 30. Qe6+ Kh8 31. Qxh6+ Kg8 32. Qe6+ Kh8 33. Qh6+ Kg8 34. Qe6+ Rff7 35. Qe8+ Rf8 36. Qe6+ $11) (28... Rxf4 29. Qh7+ Kf7 30. Qg6+ Kg8 31. Qh7+ Kf7 32. Qg6+ Kg8 33. Qh7+ $11) 29. Kh2 g3+ (29... gxh6 30. Qg6+ Rg7 31. Qe6+ Kh8 32. Qxh6+ Kg8 33. Be5 $11) (29... Rxf4 30. Qh7+ Kf7 31. Qg6+ Kg8 32. Qh7+ Kf7 33. Qg6+ Kg8 34. Qh7+ $11) 30. fxg3 gxh6 31. Qg6+ Rg7 32. Qe6+ Rff7 33. Qc8+ Kh7 34. Qc2+ Kg8 35. Qc8+ Rf8 (35... Kh7 36. Qc2+ Kh8 37. Qc8+ Kh7 $11) 36. Qe6+ Rgf7 37. Qg6+ Rg7 38. Qe6+) 28... Qb1+ $1 {[%emt 0:05:39]} 29. Kh2 {[%emt 0:00:06][%cal Of4e5]} Qf5 {[%emt 0:02:07] Chess con chili.} 30. Qxf5 {[%emt 0:00:47]} Rxf5 {[%emt 0:00:06][%mdl 4096] Endgame. KRR-KRB} 31. Be5 {[%emt 0:00:33]} R8f7 {[%emt 0:01:41]} (31... Rxf2 32. Rxg7+ Kh8 33. Rxa7+ (33. Rxg4+ Kh7 $14) 33... Kg8 34. Rg7+ Kh8 35. Kg3 $18 (35. Rxg4+ Kh7 $18)) (31... Rxh5+ $142 32. Kg3 Rf7 33. Kxg4 Rh6 34. Rxh6 gxh6) 32. Kg3 {[%emt 0:00:31]} Rxh5 {[%emt 0:00:56]} (32... Rxf2 33. Bxg7 Kh7 34. Be5 $16) 33. Rxg4 {[%emt 0:00:36]} Rh1 {[%emt 0:03:09] Hoping for ...Ra1.} 34. d5 {[%emt 0:00:33]} (34. Re4 $17) 34... Rd1 {[%emt 0:00:47]} 35. d6 {[%emt 0:00:31]} Rd3+ {[%emt 0:00:36]} 36. f3 {[%emt 0:00:16]} Rxa3 {[%emt 0:00:17]} 37. Rc4 {[%emt 0:00:43] [#]} Ra5 {[%emt 0:01:38]} (37... Re3 $1 $19 {[%cal Re3e5]} 38. Rd4 (38. Rc8+ $2 Rf8 $19) 38... Rd7 (38... Rxe5 39. d7 $17)) 38. f4 {[%emt 0:00:31]} Rd5 {[%emt 0:02:07]} (38... g5 $17 39. Kg4 gxf4 40. Bxf4 Rc5) 39. Kg4 {[%emt 0:00:29] [#]} ({Better is} 39. Rc8+ $15 Kh7 40. Re8) 39... b5 {[%emt 0:10:15]} (39... Rc5 $1 $17 {[%cal Rc5c4]} 40. Rd4 Rd7) 40. Rc8+ $11 {[%emt 0:00:31]} Kh7 {[%emt 0:00:08] ...Kg6 would now be deadly.} 41. Ra8 $2 {[%emt 0:00:30]} (41. Rc7 $11 Kg8 (41... Rxc7 42. dxc7 Rc5 43. Kf5 $11) 42. Rc8+ Rf8 43. Rc7) 41... b4 {[%emt 0:05:22] ...Rb7 is the strong threat.} 42. Kf3 $2 {[%emt 0:00:30]} (42. Rb8) 42... Rxe5 $19 {[%emt 0:01:27]} 43. d7 {[%emt 0:00:09]} Rd5 {[%emt 0:02:34]} 44. d8=Q {[%emt 0:00:27]} Rxd8 {[%emt 0:00:05]} 45. Rxd8 {[%emt 0:00:03] KR-KR} Rb7 {[%emt 0:00:04]} 46. Rd1 {[%emt 0:01:21]} b3 {[%emt 0:00:06] ( -> ...b2)} 47. Ke3 {[%emt 0:00:16]} b2 {[%emt 0:00:14] Black mates.} 48. Rb1 {[%emt 0:00:02]} a5 {[%emt 0:00:05]} 49. Kd2 {[%emt 0:00:30]} a4 {[%emt 0:00:05]} 50. Kc2 {[%emt 0:00:11]} a3 {[%emt 0:00:26]} 51. g3 {[%emt 0:00:25]} a2 {[%emt 0:00:11]} 52. Rxb2 {[%emt 0:00:28]} Rc7+ {[%emt 0:00:06] Weighted Error Value: White=0.71/Black=0.19 (very precise) .  Loses game:     	White=1     	---        Mistake:       	White=7     	Black=6      Inaccurate:     	White=3     	Black=3      OK:         	White=10    	Black=8      Best:        	White=2     	Black=2      Strong:       	---       	Black=2} (52... a1=B 53. Rxb7 Bd4 54. Kd3 $18) 0-1

[Event "3rd Matrix Cup 2024"]
[Site "New Delhi"]
[Date "2024.04.10"]
[Round "9.5"]
[White "Kishan Kumar"]
[Black "Nirnay Garg"]
[Result "0-1"]
[ECO "D02"]
[WhiteElo "1933"]
[BlackElo "1828"]
[Annotator "TA"]
[PlyCount "102"]
[EventDate "2024.04.07"]
[EventType "swiss"]
[EventCountry "IND"]
[SourceTitle "playchess.com"]
[Source "ChessBase"]
[SourceQuality "1"]
[TimeControl "5400+30"]

{[%evp 9,102,-8,21,17,16,-10,0,-29,-27,-29,-3,-52,-37,-97,-91,-93,-59,-61,-60,-119,-60,-105,-93,-126,-4,0,0,-51,-32,-37,-37,-50,-51,-52,-42,-33,-42,-47,-33,-87,-90,-95,-45,-81,-51,-71,-65,-74,-62,-66,-78,-74,-71,-72,-45,-67,-64,-59,-76,-81,-82,-91,-106,-111,-50,-151,-147,-132,-136,-152,-151,-188,-187,-194,-192,-219,-209,-242,-225,-329,-318,-468,-364,-857,-841,-5431,-5189,-5557,-5557,-5043,-1056,-29974,-29974,-29977,-29978]} 1. Nf3 {[%emt 0:00:03]} Nf6 {[%emt 0:03:18]} 2. g3 {[%emt 0:00:26][%cal Bg2g3,Bg3g4][%mdl 32]} d5 {[%emt 0:01:59]} 3. d4 {[%emt 0:00:02]} Bf5 {[%emt 0:01:33]} 4. Bg2 {[%emt 0:00:37]} e6 {[%emt 0:02:09]} 5. Nh4 {[%emt 0:03:03]} Bg4 {[%emt 0:05:31]} 6. h3 {[%emt 0:08:31]} Bh5 {[%emt 0:00:07]} 7. g4 {[%emt 0:00:17]} Nfd7 {[%emt 0:03:03]} 8. Nf3 {[%emt 0:01:09] The position is equal.} (8. e4 $5) 8... Bg6 {[%emt 0:00:01]} 9. Bf4 {[%emt 0:06:04][%cal Oc2c4]} c5 {[%emt 0:05:26]} 10. e3 {[%emt 0:05:06]} (10. c4 $11 {should be considered.}) 10... Qb6 {[%emt 0:02:58]} 11. Qc1 {[%emt 0:04:30]} ({White should play} 11. c4 $15) 11... Nc6 {[%emt 0:01:52]} 12. c3 {[%emt 0:00:22]} Rc8 {[%emt 0:02:45]} 13. O-O {[%emt 0:05:07]} Be7 {[%emt 0:00:53]} 14. Nbd2 {[%emt 0:03:00]} (14. a3 $15) 14... O-O {[%emt 0:07:18]} (14... cxd4 $17 15. exd4 Nb4) 15. Nb3 {[%emt 0:01:55]} cxd4 {[%emt 0:02:14]} 16. exd4 {[%emt 0:01:10]} Nf6 {[%emt 0:01:34] Black is more active.} (16... a5 $1 $17 17. Nbd2 Nb4) 17. Ne5 $11 {[%emt 0:01:43]} Nxe5 {[%emt 0:01:31]} 18. Bxe5 {[%emt 0:00:50]} (18. dxe5 $11 Nd7 19. Be3) 18... Qa6 {[%emt 0:04:09]} 19. Re1 {[%emt 0:06:48]} Ne4 {[%emt 0:03:09]} 20. f3 {[%emt 0:06:55]} Nd6 {[%emt 0:06:27]} 21. Bg3 {[%emt 0:01:44] Prevents Bh4.} Nc4 {[%emt 0:04:26]} 22. Nd2 {[%emt 0:03:40]} b5 {[%emt 0:02:46]} 23. Nxc4 {[%emt 0:03:03]} bxc4 {[%emt 0:04:02]} 24. b4 {[%emt 0:01:40]} (24. f4 $15 Bd6 25. Qe3) 24... cxb3 $17 {[%emt 0:02:45]} 25. axb3 {[%emt 0:00:05]} Qc6 {[%emt 0:01:58]} (25... Qb5 $17 26. Rxa7 Rfe8) 26. c4 {[%emt 0:07:49]} ({Much weaker is} 26. Rxa7 Bb4 (26... Qxc3 $2 27. Qxc3 Rxc3 28. Rxe7 $18) 27. Re3 Qb6 $17 (27... Bxc3 $2 28. Rc7 $19)) 26... Bb4 {[%emt 0:09:16][%cal Rd5c4]} 27. Rd1 {[%emt 0:01:53]} dxc4 {[%emt 0:01:13]} 28. bxc4 {[%emt 0:01:44]} Qxc4 {[%emt 0:02:06]} 29. Qxc4 {[%emt 0:00:48]} Rxc4 {[%emt 0:00:03]} 30. Bf1 {[%emt 0:00:38]} Rcc8 {[%emt 0:00:29]} 31. Ba6 {[%emt 0:03:35]} (31. Rxa7 $2 {too greedy.} Bc2 32. Rc1 Bd2 $19) 31... Rcd8 {[%emt 0:01:31]} 32. Bh4 {[%emt 0:00:43]} Rd7 {[%emt 0:02:04]} 33. Bb5 {[%emt 0:01:13]} Rb7 {[%emt 0:00:39]} 34. Bc6 {[%emt 0:01:08]} Rc7 {[%emt 0:01:42]} 35. d5 {[%emt 0:00:44]} exd5 $1 {[%emt 0:00:57]} 36. Bxd5 {[%emt 0:00:21] [#]} Rfc8 {[%emt 0:01:43]} (36... Bc2 $1 $17 {[%cal Rc2d1]} 37. Rdc1 Bd2) 37. Bf2 {[%emt 0:02:30] [#]} ({Better is} 37. Be1 $15 Bxe1 38. Rxe1) 37... Bc2 $1 {[%emt 0:02:19]} 38. Rdc1 {[%emt 0:03:01]} Bd2 {[%emt 0:01:48]} 39. Rf1 {[%emt 0:01:04]} a5 {[%emt 0:01:53]} 40. Be4 {[%emt 0:02:14]} Bxe4 {[%emt 0:01:52]} 41. fxe4 {[%emt 0:00:02]} Rc4 {[%emt 0:02:52][%cal Oa5a4]} 42. Rfd1 {[%emt 0:02:31]} Bc3 {[%emt 0:00:58]} 43. Ra3 {[%emt 0:00:01]} Bb4 {[%emt 0:00:37]} (43... Rxe4 $2 {perishes.} 44. Rxc3 Rb8 45. Bg3 $18) 44. Re3 {[%emt 0:01:29]} (44. Ra2 $142) 44... a4 $19 {[%emt 0:00:30]} 45. e5 {[%emt 0:00:58]} (45. Kg2 $142) 45... a3 {[%emt 0:00:28] Hoping for ...Rc1.} 46. e6 $2 {[%emt 0:00:44]} (46. Re2) 46... fxe6 {[%emt 0:00:27] White must now prevent ...Rc1.} 47. Rxe6 {[%emt 0:00:01]} Rc1 {[%emt 0:00:18]} 48. Rxc1 {[%emt 0:03:36]} Rxc1+ {[%emt 0:00:04]} 49. Kg2 {[%emt 0:00:01]} a2 {[%emt 0:01:00]} 50. Bd4 {[%emt 0:00:11]} Rc2+ {[%emt 0:01:27]} 51. Kf3 {[%emt 0:03:24]} Bc3 {[%emt 0:00:07] Weighted Error Value: White=0.65/Black=0.15 (very precise) .  Mistake:       	White=9     	Black=4      Inaccurate:     	White=6     	Black=4      OK:         	White=9     	Black=18     Best:        	---       	Black=4      Strong:       	---       	Black=1} 0-1